bitfinex-derivatives/quotes_SOLF0:USTF0_20250823
["timestamp","ask_amount","ask_price","bid_price","bid_amount"]
[1755913183354,153.3981,197.24,197.08,28.1186]
[1755913183355,2.82,197.22,197.13,7.52120266]
[1755913183659,2.82,197.22,197.14,4.78120266]
[1755913183857,2.82,197.22,197.15,4.78120266]
[1755913184048,2.82,197.22,197.13,2.74]
[1755913184247,2.82,197.22,197.16,5.0735]
[1755913184653,2.82,197.2,197.12,5.0746]
[1755913185048,2.82,197.2,197.13,4.78097504]
[1755913185254,2.82,197.2,197.12,5.0746]
[1755913185455,2.82,197.2,197.13,4.78097504]
[1755913185755,5.0729,197.19,197.12,5.0746]
[1755913188757,5.0733,197.18,197.1,5.0751]
[1755913188962,14.00943989,197.21,197.12,2.74]
[1755913189662,2.82,197.2,197.12,7.8145]
[1755913190563,5.0732,197.18,197.12,7.8145]
[1755913190965,2.82,197.2,197.13,5.0743]
[1755913191166,2.82,197.2,197.12,2.74]
[1755913191562,8.36038759,197.22,197.15,5.0737]
[1755913191858,2.8290523,197.23,197.15,7.8137]
[1755913191859,2.82,197.19,197.15,7.8137]
[1755913192662,5.0724,197.21,197.15,7.8137]
[1755913192863,11.18038759,197.23,197.16,5.0735]
[1755913193461,11.18038759,197.23,197.15,2.74]
[1755913193462,5.0723,197.22,197.15,2.74]
[1755913193764,5.0723,197.22,197.15,7.8137]
[1755913197066,5.0723,197.22,197.16,5.0735]
[1755913197463,8.36038759,197.23,197.12,2.74]
[1755913197769,8.36038759,197.25,197.14,28.1108]
[1755913197969,8.36038759,197.25,197.19,2.74]
[1755913199159,13.43178759,197.25,197.19,7.8127]
[1755913199360,8.36038759,197.25,197.19,7.8127]
[1755913199667,2.82,197.26,197.19,7.8127]
[1755913199668,11.18038759,197.26,197.19,7.8127]
[1755913200165,2.82,197.26,197.2,5.0724]
[1755913200570,13.43108759,197.28,197.21,5.0722]
[1755913200971,8.36038759,197.28,197.19,2.74]
[1755913201174,11.18038759,197.28,197.19,2.74]
[1755913202069,5.0709,197.27,197.2,5.0725]
[1755913202571,5.0709,197.27,197.21,2.74]
[1755913202771,2.82,197.28,197.21,7.8121]
[1755913202973,2.82,197.28,197.21,2.74]
[1755913203274,0.03593624,197.26,197.18,2.87]
[1755913203470,0.03593624,197.26,197.24,2.87]
[1755913203680,0.03593624,197.26,197.25,2.87]
[1755913206166,8.36038759,197.32,197.27,5.0708]
[1755913206676,8.36038759,197.33,197.25,2.87]
[1755913206874,8.36038759,197.35,197.28,2.87]
[1755913207172,8.36038759,197.39,197.31,2.87]
[1755913207874,0.03374035,197.37,197.31,2.87]
[1755913208670,0.03374035,197.37,197.33,5.0691]
[1755913208872,0.03374035,197.37,197.36,2.87]
[1755913210175,2.72,197.46,197.37,2.87]
[1755913211172,11.15440941,197.54,197.4,2.87]
[1755913211173,7.7852,197.49,197.4,2.87]
[1755913211371,7.7852,197.49,197.4,2.90888249]
[1755913211576,2.72,197.49,197.4,2.90888249]
[1755913211976,2.72,197.49,197.4,7.97608249]
[1755913212174,2.72,197.53,197.42,2.8290523]
[1755913212479,2.72,197.53,197.43,2.87]
[1755913212874,2.72,197.53,197.46,0.03520965]
[1755913214576,25.3221,197.53,197.46,0.03520965]
[1755913214773,2.72,197.49,197.46,0.03520965]
[1755913215080,2.72,197.52,197.46,0.03520965]
[1755913215377,5.065,197.5,197.46,0.03520965]
[1755913215570,2.72,197.49,197.46,0.03520965]
[1755913215878,2.72,197.48,197.46,0.03520965]
[1755913216181,2.72,197.47,197.46,0.03520965]
[1755913216769,2.72,197.49,197.46,0.03520965]
[1755913216975,2.72,197.48,197.46,0.03520965]
[1755913217881,5.0644,197.53,197.46,0.03520965]
[1755913219684,5.0647,197.52,197.46,0.03520965]
[1755913221686,2.72,197.49,197.46,0.03520965]
[1755913221879,2.72,197.5,197.46,0.03520965]
[1755913222080,2.72,197.49,197.46,0.03520965]
[1755913223579,2.72,197.56,197.47,2.87]
[1755913223977,2.72,197.56,197.41,2.87]
[1755913224382,2.72,197.56,197.5,0.03484882]
[1755913224790,5.0646,197.52,197.5,0.03484882]
[1755913224985,2.72,197.54,197.5,0.03484882]
[1755913225285,2.72,197.56,197.5,0.03484882]
[1755913225584,5.0642,197.53,197.5,0.03484882]
[1755913225785,2.72,197.51,197.5,0.03484882]
[1755913226986,2.8290523,197.56,197.5,0.03484882]
[1755913227289,2.72,197.53,197.5,0.03484882]
[1755913229790,5.0644,197.53,197.5,0.03484882]
[1755913230089,2.72,197.52,197.5,0.03484882]
[1755913231190,2.72,197.51,197.5,0.03484882]
[1755913234292,5.0644,197.53,197.5,0.03484882]
[1755913234293,7.8544,197.53,197.5,0.03484882]
[1755913234493,2.79,197.52,197.5,0.03484882]
[1755913239395,5.0644,197.53,197.5,0.03484882]
[1755913239594,2.79,197.51,197.5,0.03484882]
[1755913239796,2.79,197.57,197.5,0.03484882]
[1755913239999,2.79,197.57,197.5,2.91484882]
[1755913242102,7.8533,197.57,197.5,2.91484882]
[1755913242300,2.79,197.57,197.5,0.03484882]
[1755913243208,2.79,197.52,197.5,0.03484882]
[1755913244004,2.79,197.51,197.5,0.03484882]
[1755913254917,11.15038759,197.51,197.5,0.03484882]
[1755913255318,2.79,197.51,197.5,0.03484882]
[1755913257423,11.15038759,197.53,197.5,0.03484882]
[1755913257619,2.79,197.51,197.5,0.03484882]
[1755913258017,2.79,197.52,197.5,0.03484882]
[1755913258823,2.79,197.51,197.5,0.03484882]
[1755913259915,11.15038759,197.51,197.5,0.03484882]
[1755913260523,2.79,197.51,197.5,0.03484882]
[1755913261428,5.0654,197.49,197.29,25.352]
[1755913261728,11.17803973,197.48,197.39,2.88]
[1755913261923,8.38803973,197.5,197.41,2.88]
[1755913262125,8.38803973,197.49,197.43,2.88]
[1755913262325,13.45283973,197.51,197.43,2.88]
[1755913262722,8.38803973,197.5,197.43,2.88]
[1755913262925,11.17803973,197.5,197.46,2.88]
[1755913263225,11.17803973,197.49,197.46,2.88]
[1755913263823,2.79,197.47,197.45,0.03279033]
[1755913264517,11.21039795,197.49,197.45,0.03279033]
[1755913264830,8.42039795,197.49,197.46,2.69]
[1755913265223,0.03235822,197.49,197.46,2.69]
[1755913266520,0.03235822,197.49,197.45,0.03279033]
[1755913266926,0.03235822,197.49,197.47,2.69]
[1755913267429,0.03235822,197.49,197.46,2.69]
[1755913267729,0.03235822,197.49,197.45,0.03279033]
[1755913268031,2.79,197.48,197.46,4.77489302]
[1755913268227,0.03235822,197.49,197.46,2.69]
[1755913274427,0.03235822,197.49,197.45,0.03279033]
[1755913274629,2.79,197.48,197.45,2.72279033]
[1755913275033,0.03235822,197.49,197.45,0.03279033]
[1755913275233,0.03235822,197.49,197.47,2.69]
[1755913275934,2.82235822,197.49,197.45,2.72279033]
[1755913276633,5.09765822,197.49,197.45,2.72279033]
[1755913276939,5.09765822,197.49,197.36,10.1372]
[1755913276940,28.1593523,197.46,197.35,2.69]
[1755913277132,2.79,197.42,197.36,4.77519372]
[1755913277434,2.79,197.42,197.35,2.69]
[1755913277634,2.79,197.42,197.36,4.7718244]
[1755913277832,2.79,197.42,197.35,2.69]
[1755913278032,2.79,197.42,197.36,4.7718244]
[1755913278033,5.0679,197.39,197.36,4.7718244]
[1755913278229,5.0679,197.39,197.35,2.69]
[1755913279037,2.79,197.42,197.35,2.69]
[1755913280535,5.0677,197.4,197.35,2.69]
[1755913280733,5.0677,197.4,197.36,2.69]
[1755913281243,5.0679,197.39,197.32,7.7594]
[1755913281439,5.0679,197.39,197.33,4.76168281]
[1755913281639,5.0679,197.39,197.34,4.76168281]
[1755913281835,5.0679,197.39,197.35,2.69]
[1755913282043,5.0679,197.39,197.36,2.69]
[1755913282938,7.8579,197.39,197.36,2.69]
[1755913283735,7.8579,197.39,197.33,2.69]
[1755913283943,7.8579,197.39,197.35,2.69]
[1755913284236,2.79,197.38,197.35,2.69]
[1755913284437,2.79,197.38,197.3,2.69]
[1755913284635,2.79,197.38,197.31,4.78857229]
[1755913284834,2.79,197.38,197.32,4.78857229]
[1755913285039,2.79,197.38,197.34,2.69]
[1755913285238,2.79,197.38,197.35,4.78857229]
[1755913285438,2.79,197.38,197.34,2.69]
[1755913285639,2.79,197.38,197.35,4.78744728]
[1755913285840,2.79,197.38,197.34,2.69]
[1755913286039,2.79,197.38,197.35,7.47730998]
[1755913286239,2.79,197.38,197.35,2.69]
[1755913287843,2.79,197.38,197.36,4.78604631]
[1755913288034,2.79,197.38,197.35,2.69]
[1755913288238,2.79,197.38,197.36,4.78512116]
[1755913288539,2.79,197.38,197.35,2.69]
[1755913288739,2.79,197.38,197.36,4.78512116]
[1755913289038,2.79,197.38,197.35,2.69]
[1755913289234,2.79,197.38,197.36,4.78512116]
[1755913289433,2.79,197.38,197.35,2.69]
[1755913289637,2.79,197.38,197.36,4.78442565]
[1755913289835,2.79,197.38,197.29,2.69]
[1755913290045,2.79,197.38,197.3,4.78464568]
[1755913290351,2.79,197.38,197.31,4.78464568]
[1755913290642,2.79,197.38,197.32,4.78464568]
[1755913290942,2.79,197.38,197.29,2.69]
[1755913291138,2.79,197.38,197.3,4.78419935]
[1755913291338,2.79,197.33,197.31,4.78419935]
[1755913291539,5.0692,197.34,197.32,4.78419935]
[1755913291740,5.0692,197.34,197.3,2.69]
[1755913292149,5.0692,197.34,197.31,4.7827651]
[1755913292448,5.0692,197.34,197.3,2.69]
[1755913292640,5.0692,197.34,197.31,4.78136253]
[1755913292839,5.0692,197.34,197.31,2.69]
[1755913293237,5.0692,197.34,197.32,4.78013934]
[1755913293438,5.0692,197.34,197.31,2.69]
[1755913293647,2.95,197.35,197.25,2.87]
[1755913293942,25.343,197.36,197.2,2.87]
[1755913293943,2.95,197.33,197.2,2.87]
[1755913294134,2.8290523,197.34,197.21,4.7820438]
[1755913294135,5.0713,197.26,197.21,4.7820438]
[1755913294340,2.95,197.26,197.22,2.87]
[1755913295342,2.8290523,197.34,197.09,152.7567]
[1755913295343,2.95,197.33,197.24,2.87]
[1755913295538,2.95,197.33,197.23,7.60359452]
[1755913295539,2.95,197.3,197.25,4.77454222]
[1755913295739,5.0713,197.26,197.2,2.87]
[1755913295941,8.0213,197.26,197.21,7.64532076]
[1755913296145,2.95,197.26,197.22,2.87]
[1755913296446,2.95,197.31,197.23,2.87]
[1755913297442,2.95,197.34,197.24,4.76837641]
[1755913297743,2.95,197.34,197.23,2.8290523]
[1755913297744,2.95,197.34,197.25,7.63837641]
[1755913297934,2.95,197.34,197.25,2.87]
[1755913298138,2.95,197.34,197.26,4.76783357]
[1755913298338,2.95,197.34,197.25,2.87]
[1755913298544,2.95,197.34,197.28,0.03685378]
[1755913299042,2.95,197.34,197.28,2.90685378]
[1755913299545,8.0178,197.39,197.29,4.76597668]
[1755913299745,2.95,197.39,197.3,7.63597668]
[1755913299941,2.95,197.39,197.3,2.87]
[1755913300448,127.4,197.43,197.13,2.87]
[1755913300449,2.95,197.35,197.13,2.87]
[1755913300642,2.95,197.35,197.08,15.23]
[1755913300643,2.95,197.35,197.2,2.8290523]
[1755913300942,5.0693,197.33,197.22,2.90717614]
[1755913301341,2.8290523,197.42,197.27,2.87]
[1755913301648,2.95,197.38,197.28,4.76736308]
[1755913301845,2.95,197.38,197.27,2.87]
[1755913301846,2.95,197.38,197.29,4.76736308]
[1755913302140,2.95,197.38,197.3,7.63736308]
[1755913302342,8.0172,197.42,197.32,0.03722389]
[1755913302847,2.95,197.42,197.34,2.87]
[1755913303046,2.95,197.42,197.35,4.7645929]
[1755913303340,2.95,197.39,197.3,2.87]
[1755913303545,2.95,197.39,197.26,2.87]
[1755913303845,2.95,197.39,197.28,2.87]
[1755913304145,2.95,197.39,197.21,340.8]
[1755913304146,2.95,197.39,197.29,4.76695187]
[1755913304349,2.95,197.37,197.3,4.76695187]
[1755913304643,2.95,197.37,197.24,2.87]
[1755913304841,0.03290487,197.35,197.25,4.76849419]
[1755913305042,0.03290487,197.35,197.24,2.87]
[1755913305043,2.95,197.34,197.26,4.76849419]
[1755913305250,2.95,197.34,197.27,4.76849419]
[1755913305548,2.95,197.34,197.24,2.87]
[1755913305744,2.95,197.34,197.26,2.87]
[1755913305946,2.95,197.34,197.27,4.76771269]
[1755913306140,0.03504344,197.31,197.27,2.87]
[1755913306441,0.03504344,197.31,197.29,2.87]
[1755913306644,0.03504344,197.31,197.3,2.87]
[1755913307044,0.03504344,197.31,197.25,5.6990523]
[1755913307241,2.95,197.3,197.26,4.76761047]
[1755913307548,2.95,197.3,197.23,2.87]
[1755913307751,2.95,197.3,197.19,2.87]
[1755913308246,8.0201,197.3,197.19,2.87]
[1755913308549,0.03800083,197.26,197.19,2.87]
[1755913308745,0.03800083,197.26,197.19,7.9429]
[1755913309050,0.03800083,197.26,197.2,7.63832517]
[1755913309242,0.03800083,197.26,197.23,5.0719]
[1755913309443,0.03800083,197.26,197.25,2.87]
[1755913310351,0.03800083,197.26,197.25,7.63715447]
[1755913310546,2.95,197.35,197.26,5.071]
[1755913311546,2.8290523,197.4,197.29,5.6990523]
[1755913311547,2.95,197.39,197.29,5.6990523]
[1755913311850,2.95,197.39,197.29,5.73485976]
[1755913312156,8.018,197.39,197.29,5.73485976]
[1755913312752,2.95,197.37,197.29,2.90580746]
[1755913313147,2.95,197.37,197.29,2.87]
[1755913313544,2.95,197.37,197.31,0.03510362]
[1755913313946,2.95,197.37,197.24,5.0715]
[1755913314142,2.95,197.37,197.26,5.0711]
[1755913314342,5.0681,197.38,197.32,0.03547584]
[1755913314553,2.95,197.36,197.32,0.03547584]
[1755913314755,2.95,197.39,197.32,0.03547584]
[1755913317051,5.0684,197.37,197.32,0.03547584]
[1755913317258,2.95,197.39,197.32,0.03547584]
[1755913320054,2.95,197.39,197.33,4.76574322]
[1755913320256,2.95,197.39,197.32,0.03547584]
[1755913320561,2.95,197.39,197.33,4.76838183]
[1755913320761,2.95,197.39,197.32,0.03547584]
[1755913320963,2.95,197.39,197.33,4.76838518]
[1755913321158,2.95,197.39,197.32,0.03547584]
[1755913321359,2.95,197.39,197.33,4.77137419]
[1755913321556,2.95,197.44,197.35,2.87]
[1755913321758,2.95,197.44,197.36,4.77137419]
[1755913321959,193.45845936,197.46,197.38,2.87]
[1755913322164,193.45845936,197.46,197.39,4.77137419]
[1755913322367,193.45845936,197.46,197.4,4.77137419]
[1755913322569,2.95,197.43,197.38,2.90868615]
[1755913322870,2.95,197.42,197.38,0.03868615]
[1755913323866,2.9,197.43,197.38,0.03868615]
[1755913324071,0.03253668,197.44,197.38,0.03868615]
[1755913324072,2.9,197.4,197.38,0.03868615]
[1755913324371,2.9,197.39,197.38,0.03868615]
[1755913326467,8.42057641,197.44,197.38,0.03868615]
[1755913326468,0.03253668,197.44,197.38,0.03868615]
[1755913327170,0.03253668,197.44,197.39,4.7673792]
[1755913327370,2.93253668,197.44,197.38,0.03868615]
[1755913328367,7.99903668,197.44,197.38,0.03868615]
[1755913328562,2.93253668,197.44,197.38,0.03868615]
[1755913330671,2.9,197.43,197.38,0.03868615]
[1755913330873,8.42057641,197.44,197.38,0.03868615]
[1755913331071,2.9,197.43,197.38,0.03868615]
[1755913331372,127.3,197.43,197.38,0.03868615]
[1755913331579,2.9,197.42,197.38,0.03868615]
[1755913331772,2.9,197.41,197.38,0.03868615]
[1755913331973,2.9,197.4,197.38,0.03868615]
[1755913332575,2.9,197.39,197.38,0.03868615]
[1755913339188,2.9,197.35,197.27,2.86]
[1755913339387,2.9,197.39,197.27,2.86]
[1755913339586,2.9,197.39,197.28,7.62834567]
[1755913339790,2.9,197.39,197.3,5.0699]
[1755913340087,2.9,197.39,197.31,2.86]
[1755913340484,0.0385954,197.36,197.3,5.0699]
[1755913340696,0.0385954,197.36,197.32,2.86]
[1755913342088,0.0385954,197.36,197.31,5.0697]
[1755913342282,0.0385954,197.36,197.34,2.86]
[1755913343188,0.0385954,197.36,197.24,29.9359483]
[1755913343389,0.0385954,197.36,197.25,9.46392362]
[1755913343687,2.9,197.37,197.28,5.0704]
[1755913343889,0.03663453,197.32,197.29,4.74401117]
[1755913344191,2.93663453,197.32,197.25,2.86]
[1755913344490,2.93663453,197.32,197.26,4.74502055]
[1755913344685,2.9,197.32,197.27,7.60502055]
[1755913344985,0.03621617,197.31,197.27,2.86]
[1755913345193,0.03621617,197.31,197.21,2.86]
[1755913345588,2.9,197.33,197.23,2.86]
[1755913345789,2.9,197.33,197.24,4.74525664]
[1755913345985,2.9,197.33,197.19,366.0847]
[1755913345986,0.03408182,197.28,197.26,2.86]
[1755913346190,0.03408182,197.28,197.27,2.86]
[1755913346888,0.03408182,197.28,197.27,7.60471499]
[1755913347896,0.03408182,197.28,197.27,2.86]
[1755913350091,0.03408182,197.28,197.26,5.071]
[1755913350392,0.03408182,197.28,197.27,2.86]
[1755913357795,0.03408182,197.28,197.27,7.60530828]
[1755913360497,0.03408182,197.28,197.24,5.0715]
[1755913360696,0.03408182,197.28,197.25,4.74478581]
[1755913360904,0.03408182,197.28,197.26,7.56478581]
[1755913361201,0.03408182,197.28,197.26,2.82]
[1755913361702,0.03408182,197.28,197.27,7.5642579]
[1755913361900,2.81,197.38,197.27,7.5642579]
[1755913362106,2.81,197.38,197.3,5.0699]
[1755913362306,2.81,197.38,197.31,4.7442579]
[1755913362504,2.81,197.38,197.32,4.7442579]
[1755913362704,2.81,197.38,197.3,2.82]
[1755913363004,2.81,197.38,197.31,4.74305563]
[1755913363206,2.81,197.38,197.32,4.74305563]
[1755913363498,2.82936236,197.42,197.33,4.74259663]
[1755913363697,2.82936236,197.42,197.31,5.0697]
[1755913363698,2.81,197.41,197.3,2.82]
[1755913363906,2.81,197.41,197.31,4.74313147]
[1755913364100,2.81,197.41,197.32,4.74313147]
[1755913364304,2.81,197.41,197.3,2.82]
[1755913364498,5.0684,197.37,197.31,4.74310376]
[1755913364698,2.81,197.36,197.32,4.74310376]
[1755913364907,2.81,197.36,197.3,2.82]
[1755913365104,2.81,197.36,197.31,4.74310376]
[1755913365303,2.81,197.36,197.32,4.74310376]
[1755913365504,2.81,197.36,197.32,2.82]
[1755913367502,2.81,197.36,197.33,4.74677156]
[1755913367704,2.81,197.36,197.32,2.82]
[1755913368309,2.81,197.36,197.33,4.74819701]
[1755913368608,2.81,197.36,197.32,2.82]
[1755913368905,2.81,197.36,197.33,4.74819701]
[1755913369105,2.81,197.36,197.32,2.82]
[1755913369303,2.81,197.36,197.33,4.74819701]
[1755913369503,2.81,197.36,197.32,2.82]
[1755913369700,2.81,197.36,197.25,25.357]
[1755913369701,2.82936236,197.36,197.28,2.82]
[1755913369900,2.82936236,197.36,197.29,4.74857825]
[1755913370207,2.81,197.33,197.3,4.74857825]
[1755913370507,2.82936236,197.36,197.28,2.82]
[1755913370508,2.81,197.32,197.28,2.82]
[1755913370811,2.81,197.35,197.29,4.7488099]
[1755913370998,2.81,197.35,197.25,5.0712]
[1755913371203,2.81,197.35,197.26,4.74924694]
[1755913371402,2.81,197.35,197.27,4.74924694]
[1755913371605,2.81,197.35,197.25,5.0712]
[1755913371803,2.81,197.35,197.26,4.74916368]
[1755913372003,2.81,197.35,197.27,4.74916368]
[1755913372004,5.0694,197.33,197.27,4.74916368]
[1755913372204,8.38803973,197.37,197.29,2.82]
[1755913372409,11.19803973,197.38,197.29,2.82]
[1755913372607,2.81,197.38,197.29,2.82]
[1755913372914,2.81,197.38,197.3,4.75046639]
[1755913373109,2.82936236,197.36,197.29,2.82]
[1755913373322,2.81,197.35,197.29,2.82]
[1755913373509,5.0695,197.33,197.29,2.82]
[1755913373812,7.8795,197.33,197.29,2.82]
[1755913375812,2.81,197.33,197.25,2.82]
[1755913376014,2.81,197.33,197.26,4.80218286]
[1755913376216,2.81,197.33,197.27,4.80218286]
[1755913376414,2.81,197.33,197.25,2.82]
[1755913376415,2.81,197.29,197.28,4.80218286]
[1755913376610,2.81,197.29,197.25,2.82]
[1755913376923,5.0707,197.28,197.26,4.80300662]
[1755913377107,2.81,197.27,197.2,2.82]
[1755913377313,2.81,197.27,197.21,4.80350751]
[1755913377514,2.81,197.27,197.22,7.62350751]
[1755913377717,2.82936236,197.3,197.23,4.80350751]
[1755913377917,2.82936236,197.3,197.24,4.80350751]
[1755913378108,2.82936236,197.3,197.22,2.82]
[1755913378308,11.19803973,197.31,197.23,4.80297235]
[1755913378512,8.38803973,197.32,197.24,4.80297235]
[1755913378713,25.3447,197.35,197.25,7.62180018]
[1755913378714,14.02740209,197.34,197.25,7.62180018]
[1755913378910,14.02740209,197.34,197.26,4.80180018]
[1755913379119,5.63936236,197.34,197.27,4.80131809]
[1755913379320,5.63936236,197.34,197.25,2.82]
[1755913379623,2.81,197.34,197.26,4.80137994]
[1755913379810,2.81,197.34,197.28,2.82]
[1755913380016,5.0691,197.35,197.29,4.80107599]
[1755913380215,5.0691,197.35,197.28,2.82]
[1755913380216,2.81,197.38,197.31,2.82]
[1755913380417,2.81,197.38,197.32,4.80082078]
[1755913380619,2.81,197.38,197.26,2.82]
[1755913380917,2.81,197.37,197.27,4.80088838]
[1755913381117,2.81,197.37,197.28,4.80103523]
[1755913381316,5.0686,197.36,197.29,7.62103523]
[1755913381616,5.0686,197.36,197.3,4.80103523]
[1755913381819,7.8781,197.38,197.32,2.82]
[1755913382015,5.0681,197.38,197.32,2.82]
[1755913382408,2.81,197.37,197.33,4.80151292]
[1755913382616,2.82936236,197.36,197.21,2.82]
[1755913382927,2.81,197.35,197.23,2.82]
[1755913383121,8.38803973,197.35,197.24,4.80197011]
[1755913383420,5.0703,197.3,197.25,4.80197011]
[1755913383621,7.8303,197.3,197.26,4.80197011]
[1755913383816,7.8303,197.3,197.25,2.8]
[1755913384011,7.8303,197.3,197.26,4.80315678]
[1755913384319,7.8303,197.3,197.25,2.8]
[1755913384519,7.8303,197.3,197.26,4.80281521]
[1755913384720,7.8303,197.3,197.25,2.8]
[1755913385017,7.8303,197.3,197.26,4.8028152]
[1755913385219,5.0703,197.3,197.24,2.8]
[1755913385415,5.0703,197.3,197.25,4.8026264]
[1755913385621,5.0703,197.3,197.26,7.6026264]
[1755913385823,5.0703,197.3,197.26,2.8]
[1755913386023,5.0697,197.32,197.27,4.8026264]
[1755913386322,5.0697,197.32,197.28,2.8]
[1755913386513,2.76,197.32,197.24,2.8]
[1755913386714,2.76,197.32,197.25,4.80277463]
[1755913386915,2.76,197.32,197.26,4.80277463]
[1755913387120,2.76,197.32,197.24,2.8]
[1755913387317,2.76,197.32,197.25,4.80276924]
[1755913387513,5.0703,197.3,197.26,4.80276924]
[1755913387721,7.8303,197.3,197.24,2.8]
[1755913387922,7.8303,197.3,197.25,7.60312722]
[1755913388125,7.8303,197.3,197.25,2.8]
[1755913388322,33.73623973,197.32,197.25,2.8]
[1755913388516,2.76,197.29,197.19,5.0728]
[1755913388716,2.76,197.29,197.22,2.8]
[1755913388927,7.8305,197.29,197.23,4.80356205]
[1755913389126,5.0705,197.29,197.24,4.80356205]
[1755913389329,7.8305,197.29,197.25,4.80356205]
[1755913389627,7.8305,197.29,197.22,2.8]
[1755913389825,5.0707,197.28,197.23,4.80328775]
[1755913390023,8.38803973,197.3,197.22,2.8]
[1755913390222,11.14803973,197.29,197.16,2.8]
[1755913390526,11.14803973,197.29,197.17,4.8031951]
[1755913390731,5.0717,197.24,197.18,4.8031951]
[1755913390928,2.76,197.26,197.2,2.8]
[1755913391123,2.76,197.26,197.16,5.0736]
[1755913391124,2.76,197.26,197.21,7.6031951]
[1755913391320,2.76,197.26,197.21,2.8]
[1755913391523,7.8312,197.26,197.21,2.8]
[1755913391719,25.3525,197.29,197.21,2.8]
[1755913391930,2.76,197.28,197.17,7.8733]
[1755913392228,5.0718,197.24,197.18,4.80212638]
[1755913392424,5.0718,197.24,197.19,7.60212638]
[1755913392627,5.0718,197.24,197.2,4.80212638]
[1755913392827,5.0718,197.24,197.21,4.80212638]
[1755913393029,2.76,197.23,197.19,2.8]
[1755913393337,2.76,197.23,197.2,4.80113478]
[1755913393525,5.0721,197.23,197.21,4.80113478]
[1755913393720,2.76,197.22,197.16,2.8]
[1755913393922,2.76,197.21,197.17,4.80075337]
[1755913394125,2.76,197.21,197.12,2.8]
[1755913394322,5.073,197.19,197.13,4.79884722]
[1755913394526,5.073,197.19,197.15,2.8]
[1755913395230,5.073,197.19,197.12,2.8]
[1755913395430,5.073,197.19,197.13,4.7957408]
[1755913395630,5.073,197.19,197.1,5.0752]
[1755913395631,5.073,197.19,197.14,7.5957408]
[1755913395832,7.833,197.19,197.14,2.8]
[1755913396231,7.833,197.19,197.1,5.0752]
[1755913396533,7.833,197.19,197.14,2.8]
[1755913398133,5.073,197.19,197.11,2.8]
[1755913398432,152.5385,197.24,197.13,2.8]
[1755913398433,2.76,197.23,197.13,2.8]
[1755913398933,2.76,197.23,197.14,4.78740276]
[1755913399137,2.76,197.23,197.15,7.58740276]
[1755913399339,7.8321,197.23,197.16,4.78630764]
[1755913399634,2.76,197.23,197.15,2.8]
[1755913401541,5.0723,197.22,197.15,2.8]
[1755913401841,127.18,197.24,197.15,2.8]
[1755913402041,5.58936236,197.27,197.17,2.8]
[1755913403141,2.82936236,197.24,197.09,2.8]
[1755913403345,2.82936236,197.24,197.08,28.20696236]
[1755913403346,2.76,197.23,197.1,4.78172406]
[1755913403645,2.76,197.23,197.11,7.58172406]
[1755913403844,2.76,197.23,197.12,4.78172406]
[1755913404045,2.76,197.23,197.13,4.78172406]
[1755913404246,2.76,197.23,197.11,2.8]
[1755913404442,5.0728,197.2,197.12,4.81517219]
[1755913404741,5.0728,197.2,197.13,4.81517219]
[1755913404948,2.76,197.23,197.14,4.81496473]
[1755913405243,2.76,197.23,197.15,7.61475728]
[1755913405446,2.76,197.23,197.15,2.8]